[Event "Titled Tuesday Blitz December 13 Late 2022"]
[White "Steenbekkers, Franck"]
[Black "Hoffmann, Asa"]
[WhiteFideId "1004220"]
[BlackFideId "2001470"]
[WhiteElo "1932"]
[BlackElo "2117"]
[Result "0-1"]
[Round "06"]
[TimeControl "180+1"]
[Date "2022.12.14"]
[WhiteClock "0:01:07"]
[BlackClock "0:00:41"]

1. e4 {[%clk 0:02:56]}  d6 {[%clk 0:02:59]} 2. d4 {[%clk 0:02:55]}  Nf6 {[%clk 0:02:58]} 3. Nc3 {[%clk 0:02:54]}  c6 {[%clk 0:02:58]} 4. Be3 {[%clk 0:02:49]}  Ng4 {[%clk 0:02:57]} 5. Bc1 {[%clk 0:02:43]}  e5 {[%clk 0:02:55]} 6. f3 {[%clk 0:02:42]}  exd4 {[%clk 0:02:53]} 7. Qxd4 {[%clk 0:02:41]}  Nf6 {[%clk 0:02:49]} 8. Bg5 {[%clk 0:02:40]}  Be7 {[%clk 0:02:48]} 9. O-O-O {[%clk 0:02:38]}  Qb6 {[%clk 0:02:47]} 10. Bxf6 {[%clk 0:02:32]}  gxf6 {[%clk 0:02:47]} 11. Qd2 {[%clk 0:02:26]}  Be6 {[%clk 0:02:44]} 12. Bd3 {[%clk 0:02:24]}  Nd7 {[%clk 0:02:44]} 13. Nge2 {[%clk 0:02:24]}  Ne5 {[%clk 0:02:40]} 14. Nf4 {[%clk 0:02:19]}  O-O-O {[%clk 0:02:38]} 15. Kb1 {[%clk 0:02:14]}  h5 {[%clk 0:02:37]} 16. Nce2 {[%clk 0:02:08]}  Bf8 {[%clk 0:02:27]} 17. Qc3 {[%clk 0:02:06]}  Bh6 {[%clk 0:02:24]} 18. Nxh5 {[%clk 0:02:02]}  Be3 {[%clk 0:01:50]} 19. Nxf6 {[%clk 0:01:55]}  Bc5 {[%clk 0:01:41]} 20. a3 {[%clk 0:01:51]}  a5 {[%clk 0:01:38]} 21. Bc4 {[%clk 0:01:40]}  Bxc4 {[%clk 0:01:31]} 22. Ng3 {[%clk 0:01:37]}  Be6 {[%clk 0:01:27]} 23. f4 {[%clk 0:01:35]}  Ng4 {[%clk 0:01:24]} 24. f5 {[%clk 0:01:35]}  Nxf6 {[%clk 0:01:20]} 25. fxe6 {[%clk 0:01:29]}  Ng4 {[%clk 0:01:17]} 26. exf7 {[%clk 0:01:28]}  Nf2 {[%clk 0:01:14]} 27. Nf5 {[%clk 0:01:22]}  Nxh1 {[%clk 0:01:11]} 28. Rxh1 {[%clk 0:01:21]}  Rhf8 {[%clk 0:01:09]} 29. Qf6 {[%clk 0:01:15]}  Bxa3 {[%clk 0:00:53]} 30. g4 {[%clk 0:01:14]}  Rxf7 {[%clk 0:00:46]} 31. Qe6+ {[%clk 0:01:09]}  Rfd7 {[%clk 0:00:43]} 32. b3 {[%clk 0:01:07]}  a4 {[%clk 0:00:41]} 0-1


[Site "https://www.chess.com"]

[Event "Titled Tuesday Blitz December 13 Late 2022"]
[White "Tang, Andrew"]
[Black "Arkell, Keith C"]
[WhiteFideId "2059630"]
[BlackFideId "400270"]
[WhiteElo "2582"]
[BlackElo "2356"]
[Result "1-0"]
[Round "06"]
[TimeControl "180+1"]
[Date "2022.12.13"]
[WhiteClock "0:00:08"]
[BlackClock "0:00:05"]

1. d4 {[%clk 0:03:00]}  e6 {[%clk 0:02:59]} 2. Nf3 {[%clk 0:03:00]}  Nf6 {[%clk 0:02:59]} 3. Bf4 {[%clk 0:03:00]}  c5 {[%clk 0:02:59]} 4. e3 {[%clk 0:03:01]}  cxd4 {[%clk 0:02:59]} 5. exd4 {[%clk 0:03:02]}  Be7 {[%clk 0:03:00]} 6. Nbd2 {[%clk 0:03:02]}  b6 {[%clk 0:03:00]} 7. a4 {[%clk 0:03:02]}  a6 {[%clk 0:03:00]} 8. Bd3 {[%clk 0:02:59]}  Bb7 {[%clk 0:03:00]} 9. O-O {[%clk 0:02:59]}  d6 {[%clk 0:03:00]} 10. Re1 {[%clk 0:03:00]}  Nbd7 {[%clk 0:03:01]} 11. a5 {[%clk 0:02:55]}  b5 {[%clk 0:03:00]} 12. c4 {[%clk 0:02:56]}  bxc4 {[%clk 0:03:01]} 13. Nxc4 {[%clk 0:02:57]}  Qb8 {[%clk 0:02:58]} 14. Qa4 {[%clk 0:02:46]}  O-O {[%clk 0:02:53]} 15. Qa3 {[%clk 0:02:45]}  Bxf3 {[%clk 0:02:47]} 16. gxf3 {[%clk 0:02:46]}  Nd5 {[%clk 0:02:33]} 17. Bxd6 {[%clk 0:02:41]}  Bxd6 {[%clk 0:02:33]} 18. Nxd6 {[%clk 0:02:42]}  Qb4 {[%clk 0:02:26]} 19. Qxb4 {[%clk 0:02:32]}  Nxb4 {[%clk 0:02:27]} 20. Be4 {[%clk 0:02:33]}  Rab8 {[%clk 0:02:26]} 21. Rac1 {[%clk 0:02:27]}  Nf6 {[%clk 0:02:25]} 22. Red1 {[%clk 0:02:17]}  g6 {[%clk 0:02:24]} 23. Rc7 {[%clk 0:02:12]}  Nfd5 {[%clk 0:02:17]} 24. Ra7 {[%clk 0:02:09]}  Rbd8 {[%clk 0:02:16]} 25. Nc4 {[%clk 0:02:06]}  Ra8 {[%clk 0:01:53]} 26. Rxa8 {[%clk 0:01:15]}  Rxa8 {[%clk 0:01:54]} 27. Nb6 {[%clk 0:01:16]}  Rd8 {[%clk 0:01:52]} 28. Rc1 {[%clk 0:01:12]}  Kg7 {[%clk 0:01:29]} 29. Rc4 {[%clk 0:01:11]}  Kf6 {[%clk 0:01:23]} 30. Bxd5 {[%clk 0:01:03]}  Nxd5 {[%clk 0:01:24]} 31. Nxd5+ {[%clk 0:01:02]}  Rxd5 {[%clk 0:01:24]} 32. b4 {[%clk 0:01:02]}  Rd7 {[%clk 0:01:10]} 33. Kf1 {[%clk 0:00:57]}  Kg5 {[%clk 0:01:09]} 34. Ke2 {[%clk 0:00:55]}  h5 {[%clk 0:01:04]} 35. Kd3 {[%clk 0:00:37]}  Kf4 {[%clk 0:00:51]} 36. Rc6 {[%clk 0:00:37]}  Ra7 {[%clk 0:00:47]} 37. Ke2 {[%clk 0:00:32]}  g5 {[%clk 0:00:38]} 38. h3 {[%clk 0:00:31]}  Rb7 {[%clk 0:00:22]} 39. Rb6 {[%clk 0:00:28]}  Ra7 {[%clk 0:00:23]} 40. Rb8 {[%clk 0:00:14]}  Rd7 {[%clk 0:00:20]} 41. Rf8 {[%clk 0:00:10]}  Rxd4 {[%clk 0:00:17]} 42. Rxf7+ {[%clk 0:00:10]}  Ke5 {[%clk 0:00:17]} 43. Rb7 {[%clk 0:00:10]}  Rc4 {[%clk 0:00:15]} 44. Rb6 {[%clk 0:00:10]}  Kf5 {[%clk 0:00:13]} 45. Kd3 {[%clk 0:00:10]}  Rf4 {[%clk 0:00:13]} 46. Ke3 {[%clk 0:00:06]}  Rc4 {[%clk 0:00:13]} 47. Kd2 {[%clk 0:00:06]}  e5 {[%clk 0:00:12]} 48. Ke3 {[%clk 0:00:05]}  Rd4 {[%clk 0:00:11]} 49. Ke2 {[%clk 0:00:04]}  Rc4 {[%clk 0:00:10]} 50. Kd3 {[%clk 0:00:05]}  Rd4+ {[%clk 0:00:10]} 51. Kc3 {[%clk 0:00:05]}  Rf4 {[%clk 0:00:10]} 52. Rxa6 {[%clk 0:00:06]}  Rxf3+ {[%clk 0:00:11]} 53. Kc4 {[%clk 0:00:07]}  Rxf2 {[%clk 0:00:10]} 54. Ra8 {[%clk 0:00:07]}  Rc2+ {[%clk 0:00:08]} 55. Kd3 {[%clk 0:00:07]}  Rb2 {[%clk 0:00:08]} 56. Kc3 {[%clk 0:00:08]}  Rb1 {[%clk 0:00:08]} 57. a6 {[%clk 0:00:08]}  e4 {[%clk 0:00:08]} 58. a7 {[%clk 0:00:09]}  Ra1 {[%clk 0:00:05]} 59. b5 {[%clk 0:00:08]} 1-0


[Site "https://www.chess.com"]

[Event "Titled Tuesday Blitz December 13 Late 2022"]
[White "Thomforde-Toates, Noah"]
[Black "Kamsky, Gata"]
[WhiteFideId "30951992"]
[BlackFideId "2000024"]
[WhiteElo "2598"]
[BlackElo "2884"]
[Result "1/2-1/2"]
[Round "06"]
[TimeControl "180+1"]
[Date "2022.12.14"]
[WhiteClock "0:00:04"]
[BlackClock "0:00:16"]

1. d4 {[%clk 0:03:00]}  Nf6 {[%clk 0:02:51]} 2. Nc3 {[%clk 0:02:59]}  d5 {[%clk 0:02:50]} 3. Bf4 {[%clk 0:02:59]}  Bf5 {[%clk 0:02:47]} 4. f3 {[%clk 0:02:57]}  e6 {[%clk 0:02:46]} 5. g4 {[%clk 0:02:54]}  Bg6 {[%clk 0:02:46]} 6. h4 {[%clk 0:02:54]}  h6 {[%clk 0:02:44]} 7. h5 {[%clk 0:02:52]}  Bh7 {[%clk 0:02:43]} 8. e3 {[%clk 0:02:53]}  a6 {[%clk 0:02:44]} 9. Bd3 {[%clk 0:02:49]}  Bxd3 {[%clk 0:02:43]} 10. cxd3 {[%clk 0:02:49]}  c5 {[%clk 0:02:40]} 11. dxc5 {[%clk 0:02:47]}  Bxc5 {[%clk 0:02:39]} 12. d4 {[%clk 0:02:47]}  Bd6 {[%clk 0:02:33]} 13. Nge2 {[%clk 0:02:47]}  Nc6 {[%clk 0:02:34]} 14. Rc1 {[%clk 0:02:45]}  Qe7 {[%clk 0:02:20]} 15. a3 {[%clk 0:02:34]}  Rd8 {[%clk 0:02:15]} 16. Qd3 {[%clk 0:02:19]}  e5 {[%clk 0:02:08]} 17. dxe5 {[%clk 0:02:16]}  Bxe5 {[%clk 0:02:07]} 18. O-O {[%clk 0:02:13]}  d4 {[%clk 0:01:55]} 19. Ne4 {[%clk 0:01:21]}  Bxf4 {[%clk 0:01:34]} 20. exf4 {[%clk 0:00:37]}  O-O {[%clk 0:01:30]} 21. N2g3 {[%clk 0:00:34]}  Nd5 {[%clk 0:01:27]} 22. Nf5 {[%clk 0:00:31]}  Qc7 {[%clk 0:01:26]} 23. Rxc6 {[%clk 0:00:23]}  bxc6 {[%clk 0:01:24]} 24. Qxd4 {[%clk 0:00:23]}  f6 {[%clk 0:01:21]} 25. Qc4 {[%clk 0:00:19]}  Kh7 {[%clk 0:01:16]} 26. Qc2 {[%clk 0:00:17]}  Kh8 {[%clk 0:01:10]} 27. Nh4 {[%clk 0:00:17]}  Nxf4 {[%clk 0:01:09]} 28. Ng3 {[%clk 0:00:12]}  Rfe8 {[%clk 0:01:05]} 29. Qf5 {[%clk 0:00:11]}  Kg8 {[%clk 0:01:03]} 30. Ne4 {[%clk 0:00:11]}  Rd5 {[%clk 0:00:47]} 31. Nxf6+ {[%clk 0:00:06]}  gxf6 {[%clk 0:00:47]} 32. Qxf6 {[%clk 0:00:06]}  Ne2+ {[%clk 0:00:45]} 33. Kh1 {[%clk 0:00:05]}  Ng3+ {[%clk 0:00:37]} 34. Kg1 {[%clk 0:00:03]}  Nxf1 {[%clk 0:00:37]} 35. Qg6+ {[%clk 0:00:04]}  Kf8 {[%clk 0:00:36]} 36. Qf6+ {[%clk 0:00:04]}  Kg8 {[%clk 0:00:34]} 37. Qg6+ {[%clk 0:00:04]}  Kf8 {[%clk 0:00:16]} 38. Qf6+ {[%clk 0:00:04]}  Kg8 {[%clk 0:00:16]} 1/2-1/2


[Site "https://www.chess.com"]

[Event "Titled Tuesday Blitz December 13 Late 2022"]
[White "Topalov, Aleksandar"]
[Black "Winterberg, Lukas"]
[WhiteFideId "925659"]
[BlackFideId "24622702"]
[WhiteElo "2151"]
[BlackElo "2350"]
[Result "1-0"]
[Round "06"]
[TimeControl "180+1"]
[Date "2022.12.14"]
[WhiteClock "0:00:30"]
[BlackClock "0:00:07"]

1. b3 {[%clk 0:03:00]}  e5 {[%clk 0:02:56]} 2. Bb2 {[%clk 0:03:01]}  Nc6 {[%clk 0:02:57]} 3. c4 {[%clk 0:03:00]}  f5 {[%clk 0:02:54]} 4. e3 {[%clk 0:03:00]}  Nf6 {[%clk 0:02:54]} 5. Nf3 {[%clk 0:03:00]}  d6 {[%clk 0:02:53]} 6. d4 {[%clk 0:03:00]}  e4 {[%clk 0:02:54]} 7. d5 {[%clk 0:03:00]}  exf3 {[%clk 0:02:53]} 8. dxc6 {[%clk 0:03:00]}  bxc6 {[%clk 0:02:46]} 9. Qxf3 {[%clk 0:02:59]}  Bd7 {[%clk 0:02:37]} 10. Bd3 {[%clk 0:02:59]}  g6 {[%clk 0:02:36]} 11. e4 {[%clk 0:02:59]}  Bg7 {[%clk 0:02:27]} 12. exf5 {[%clk 0:02:57]}  O-O {[%clk 0:02:27]} 13. O-O {[%clk 0:02:56]}  gxf5 {[%clk 0:02:24]} 14. Nc3 {[%clk 0:02:38]}  Qe8 {[%clk 0:02:03]} 15. Rfe1 {[%clk 0:02:35]}  Qg6 {[%clk 0:02:03]} 16. Ne2 {[%clk 0:02:32]}  Rae8 {[%clk 0:01:58]} 17. Nf4 {[%clk 0:02:20]}  Qh6 {[%clk 0:01:54]} 18. h3 {[%clk 0:02:09]}  Ne4 {[%clk 0:01:45]} 19. Bxg7 {[%clk 0:02:06]}  Qxg7 {[%clk 0:01:45]} 20. Rac1 {[%clk 0:01:50]}  Kh8 {[%clk 0:01:34]} 21. Bxe4 {[%clk 0:01:34]}  fxe4 {[%clk 0:01:35]} 22. Rxe4 {[%clk 0:01:33]}  Rxe4 {[%clk 0:01:06]} 23. Qxe4 {[%clk 0:01:33]}  Re8 {[%clk 0:01:07]} 24. Qf3 {[%clk 0:01:29]}  Qb2 {[%clk 0:00:59]} 25. Qc3+ {[%clk 0:01:26]}  Qxc3 {[%clk 0:00:59]} 26. Rxc3 {[%clk 0:01:26]}  Bf5 {[%clk 0:00:59]} 27. Kf1 {[%clk 0:01:14]}  a5 {[%clk 0:00:55]} 28. a3 {[%clk 0:01:12]}  Kg7 {[%clk 0:00:46]} 29. f3 {[%clk 0:01:12]}  Kf6 {[%clk 0:00:40]} 30. Kf2 {[%clk 0:01:11]}  Rb8 {[%clk 0:00:35]} 31. g4 {[%clk 0:01:09]}  Bd7 {[%clk 0:00:34]} 32. h4 {[%clk 0:01:03]}  h6 {[%clk 0:00:33]} 33. Re3 {[%clk 0:01:00]}  Rb7 {[%clk 0:00:28]} 34. Kg3 {[%clk 0:00:56]}  Rb8 {[%clk 0:00:28]} 35. Nh5+ {[%clk 0:00:54]}  Kf7 {[%clk 0:00:27]} 36. g5 {[%clk 0:00:46]}  hxg5 {[%clk 0:00:23]} 37. hxg5 {[%clk 0:00:46]}  c5 {[%clk 0:00:22]} 38. Nf6 {[%clk 0:00:43]}  Be6 {[%clk 0:00:22]} 39. Nd5 {[%clk 0:00:38]}  Bxd5 {[%clk 0:00:19]} 40. cxd5 {[%clk 0:00:38]}  a4 {[%clk 0:00:20]} 41. bxa4 {[%clk 0:00:39]}  Ra8 {[%clk 0:00:20]} 42. Kg4 {[%clk 0:00:37]}  Rxa4+ {[%clk 0:00:20]} 43. Kf5 {[%clk 0:00:37]}  Rd4 {[%clk 0:00:20]} 44. g6+ {[%clk 0:00:37]}  Kf8 {[%clk 0:00:19]} 45. Kf6 {[%clk 0:00:37]}  Rf4+ {[%clk 0:00:17]} 46. Kg5 {[%clk 0:00:36]}  Rd4 {[%clk 0:00:17]} 47. f4 {[%clk 0:00:32]}  Rxd5+ {[%clk 0:00:16]} 48. Kf6 {[%clk 0:00:31]}  c4 {[%clk 0:00:09]} 49. g7+ {[%clk 0:00:31]}  Kg8 {[%clk 0:00:10]} 50. Re8+ {[%clk 0:00:30]}  Kh7 {[%clk 0:00:07]} 51. Rh8# {[%clk 0:00:30]} 1-0


[Site "https://www.chess.com"]

[Event "Titled Tuesday Blitz December 13 Late 2022"]
[White "Torres Boch, Jose Francisco"]
[Black "Blanco Acevedo, Cristobal Jose"]
[WhiteFideId "2278383"]
[BlackFideId "3900525"]
[WhiteElo "2073"]
[BlackElo "2273"]
[Result "0-1"]
[Round "06"]
[TimeControl "180+1"]
[Date "2022.12.14"]
[WhiteClock "0:01:22"]
[BlackClock "0:00:37"]

1. e4 {[%clk 0:02:56]}  c5 {[%clk 0:02:59]} 2. Nf3 {[%clk 0:02:56]}  Nc6 {[%clk 0:02:59]} 3. d4 {[%clk 0:02:56]}  cxd4 {[%clk 0:02:59]} 4. Nxd4 {[%clk 0:02:57]}  Nf6 {[%clk 0:03:00]} 5. Nc3 {[%clk 0:02:56]}  e5 {[%clk 0:03:00]} 6. Ndb5 {[%clk 0:02:56]}  d6 {[%clk 0:03:01]} 7. Bg5 {[%clk 0:02:56]}  a6 {[%clk 0:03:01]} 8. Na3 {[%clk 0:02:56]}  b5 {[%clk 0:03:01]} 9. Bxf6 {[%clk 0:02:50]}  gxf6 {[%clk 0:03:00]} 10. Nd5 {[%clk 0:02:51]}  f5 {[%clk 0:03:00]} 11. Bd3 {[%clk 0:02:49]}  Be6 {[%clk 0:02:59]} 12. c3 {[%clk 0:02:50]}  Bg7 {[%clk 0:02:57]} 13. Nxb5 {[%clk 0:02:50]}  axb5 {[%clk 0:02:54]} 14. Bxb5 {[%clk 0:02:51]}  Bd7 {[%clk 0:02:54]} 15. exf5 {[%clk 0:02:50]}  h5 {[%clk 0:02:40]} 16. O-O {[%clk 0:02:50]}  Rc8 {[%clk 0:02:37]} 17. Qf3 {[%clk 0:02:47]}  f6 {[%clk 0:02:10]} 18. Qg3 {[%clk 0:02:43]}  Kf8 {[%clk 0:02:06]} 19. Qf3 {[%clk 0:02:13]}  Nd4 {[%clk 0:01:48]} 20. cxd4 {[%clk 0:02:10]}  Bxb5 {[%clk 0:01:48]} 21. Rfd1 {[%clk 0:02:09]}  Bc6 {[%clk 0:01:42]} 22. dxe5 {[%clk 0:02:09]}  fxe5 {[%clk 0:01:34]} 23. f6 {[%clk 0:02:02]}  Bh6 {[%clk 0:01:29]} 24. Qf5 {[%clk 0:01:56]}  Bd7 {[%clk 0:01:10]} 25. Qxh5 {[%clk 0:01:54]}  Qe8 {[%clk 0:01:09]} 26. Qf3 {[%clk 0:01:45]}  e4 {[%clk 0:01:03]} 27. Qg3 {[%clk 0:01:41]}  Qe5 {[%clk 0:00:55]} 28. Nf4 {[%clk 0:01:41]}  Qxf4 {[%clk 0:00:52]} 29. Rxd6 {[%clk 0:01:39]}  Qxg3 {[%clk 0:00:51]} 30. hxg3 {[%clk 0:01:36]}  Be8 {[%clk 0:00:47]} 31. Re1 {[%clk 0:01:32]}  Rc1 {[%clk 0:00:45]} 32. Rxc1 {[%clk 0:01:30]}  Bxc1 {[%clk 0:00:45]} 33. b4 {[%clk 0:01:27]}  Rh5 {[%clk 0:00:44]} 34. Rd4 {[%clk 0:01:24]}  e3 {[%clk 0:00:40]} 35. Kf1 {[%clk 0:01:22]}  Bb5+ {[%clk 0:00:39]} 36. Ke1 {[%clk 0:01:22]}  Bd2+ {[%clk 0:00:37]} 0-1


[Site "https://www.chess.com"]

[Event "Titled Tuesday Blitz December 13 Late 2022"]
[White "Urazayev, Arystanbek"]
[Black "Janaszak, Dawid"]
[WhiteFideId "13709810"]
[BlackFideId "1119206"]
[WhiteElo "2753"]
[BlackElo "2535"]
[Result "1/2-1/2"]
[Round "06"]
[TimeControl "180+1"]
[Date "2022.12.14"]
[WhiteClock "0:00:05"]
[BlackClock "0:00:07"]

1. e4 {[%clk 0:02:58]}  e5 {[%clk 0:03:00]} 2. Nf3 {[%clk 0:02:58]}  Nc6 {[%clk 0:02:59]} 3. Nc3 {[%clk 0:02:59]}  Nf6 {[%clk 0:02:59]} 4. d4 {[%clk 0:03:00]}  exd4 {[%clk 0:02:58]} 5. Nxd4 {[%clk 0:03:00]}  Bb4 {[%clk 0:02:57]} 6. Nxc6 {[%clk 0:03:01]}  bxc6 {[%clk 0:02:55]} 7. Bd3 {[%clk 0:03:02]}  d5 {[%clk 0:02:53]} 8. Bd2 {[%clk 0:03:02]}  O-O {[%clk 0:02:46]} 9. O-O {[%clk 0:03:02]}  Bg4 {[%clk 0:02:37]} 10. Qc1 {[%clk 0:03:00]}  Re8 {[%clk 0:02:30]} 11. Re1 {[%clk 0:02:59]}  Rb8 {[%clk 0:02:25]} 12. a3 {[%clk 0:02:58]}  Bf8 {[%clk 0:02:17]} 13. b4 {[%clk 0:02:56]}  a5 {[%clk 0:01:56]} 14. exd5 {[%clk 0:02:53]}  axb4 {[%clk 0:01:53]} 15. axb4 {[%clk 0:02:51]}  cxd5 {[%clk 0:01:50]} 16. Nb5 {[%clk 0:02:46]}  Ne4 {[%clk 0:01:45]} 17. Nd4 {[%clk 0:02:37]}  Nxd2 {[%clk 0:01:43]} 18. Qxd2 {[%clk 0:02:38]}  Bxb4 {[%clk 0:01:42]} 19. c3 {[%clk 0:02:39]}  Bd6 {[%clk 0:01:34]} 20. Nc6 {[%clk 0:02:33]}  Bxh2+ {[%clk 0:01:31]} 21. Kf1 {[%clk 0:02:19]}  Qh4 {[%clk 0:00:56]} 22. Nxb8 {[%clk 0:02:17]}  Rxb8 {[%clk 0:00:57]} 23. Qb2 {[%clk 0:02:18]}  Rf8 {[%clk 0:00:43]} 24. Be2 {[%clk 0:02:07]}  Be6 {[%clk 0:00:37]} 25. Bf3 {[%clk 0:02:00]}  c6 {[%clk 0:00:29]} 26. Qb4 {[%clk 0:01:54]}  Qxb4 {[%clk 0:00:21]} 27. cxb4 {[%clk 0:01:54]}  Bd6 {[%clk 0:00:22]} 28. b5 {[%clk 0:01:52]}  cxb5 {[%clk 0:00:21]} 29. Ra6 {[%clk 0:01:53]}  Bb4 {[%clk 0:00:20]} 30. Rb1 {[%clk 0:01:52]}  Bc3 {[%clk 0:00:19]} 31. Rxb5 {[%clk 0:01:51]}  d4 {[%clk 0:00:19]} 32. Be2 {[%clk 0:01:51]}  h6 {[%clk 0:00:16]} 33. Bd3 {[%clk 0:01:50]}  Rc8 {[%clk 0:00:15]} 34. f4 {[%clk 0:01:42]}  Bc4 {[%clk 0:00:14]} 35. Bxc4 {[%clk 0:01:42]}  Rxc4 {[%clk 0:00:15]} 36. f5 {[%clk 0:01:40]}  d3 {[%clk 0:00:14]} 37. Rd5 {[%clk 0:01:09]}  d2 {[%clk 0:00:13]} 38. Ra8+ {[%clk 0:00:58]}  Kh7 {[%clk 0:00:12]} 39. Rad8 {[%clk 0:00:58]}  Re4 {[%clk 0:00:10]} 40. Kf2 {[%clk 0:00:58]}  h5 {[%clk 0:00:07]} 41. Kf3 {[%clk 0:00:58]}  Re1 {[%clk 0:00:07]} 42. R8d7 {[%clk 0:00:55]}  f6 {[%clk 0:00:06]} 43. Rd8 {[%clk 0:00:52]}  Kh6 {[%clk 0:00:07]} 44. R8d7 {[%clk 0:00:47]}  h4 {[%clk 0:00:05]} 45. Kg4 {[%clk 0:00:47]}  Re4+ {[%clk 0:00:05]} 46. Kh3 {[%clk 0:00:46]}  Re3+ {[%clk 0:00:03]} 47. Kxh4 {[%clk 0:00:45]}  Re1 {[%clk 0:00:04]} 48. R7d6 {[%clk 0:00:35]}  Kh7 {[%clk 0:00:03]} 49. g4 {[%clk 0:00:34]}  Rh1+ {[%clk 0:00:01]} 50. Kg3 {[%clk 0:00:34]}  Be5+ {[%clk 0:00:01]} 51. Rxe5 {[%clk 0:00:35]}  fxe5 {[%clk 0:00:02]} 52. Rxd2 {[%clk 0:00:34]}  Re1 {[%clk 0:00:02]} 53. Rd6 {[%clk 0:00:26]}  e4 {[%clk 0:00:02]} 54. g5 {[%clk 0:00:27]}  Re3+ {[%clk 0:00:02]} 55. Kf4 {[%clk 0:00:27]}  Re1 {[%clk 0:00:02]} 56. g6+ {[%clk 0:00:27]}  Kh6 {[%clk 0:00:02]} 57. Rd8 {[%clk 0:00:26]}  Rf1+ {[%clk 0:00:02]} 58. Ke5 {[%clk 0:00:19]}  Kg5 {[%clk 0:00:03]} 59. Kxe4 {[%clk 0:00:09]}  Rxf5 {[%clk 0:00:03]} 60. Rd1 {[%clk 0:00:09]}  Rf4+ {[%clk 0:00:03]} 61. Ke5 {[%clk 0:00:09]}  Rf5+ {[%clk 0:00:04]} 62. Ke6 {[%clk 0:00:10]}  Rf6+ {[%clk 0:00:04]} 63. Ke7 {[%clk 0:00:11]}  Kxg6 {[%clk 0:00:05]} 64. Rg1+ {[%clk 0:00:11]}  Kh7 {[%clk 0:00:06]} 65. Rh1+ {[%clk 0:00:11]}  Rh6 {[%clk 0:00:06]} 66. Rg1 {[%clk 0:00:11]}  Rg6 {[%clk 0:00:06]} 67. Rh1+ {[%clk 0:00:11]}  Rh6 {[%clk 0:00:07]} 68. Rg1 {[%clk 0:00:12]}  Rh2 {[%clk 0:00:07]} 69. Kf7 {[%clk 0:00:11]}  Kh6 {[%clk 0:00:07]} 70. Rg6+ {[%clk 0:00:11]}  Kh5 {[%clk 0:00:07]} 71. Kxg7 {[%clk 0:00:10]}  Rh4 {[%clk 0:00:07]} 72. Kh7 {[%clk 0:00:07]}  Rg4 {[%clk 0:00:07]} 73. Ra6 {[%clk 0:00:06]}  Kg5 {[%clk 0:00:07]} 74. Ra5+ {[%clk 0:00:05]} 1/2-1/2


[Site "https://www.chess.com"]

[Event "Titled Tuesday Blitz December 13 Late 2022"]
[White "Zhu, Jiner"]
[Black "Arnold, Ken"]
[WhiteFideId "8608059"]
[BlackFideId "2056836"]
[WhiteElo "2384"]
[BlackElo "2366"]
[Result "1-0"]
[Round "06"]
[TimeControl "180+1"]
[Date "2022.12.14"]
[WhiteClock "0:02:04"]
[BlackClock "0:00:55"]

1. g3 {[%clk 0:03:00]}  c6 {[%clk 0:03:00]} 2. Bg2 {[%clk 0:02:55]}  d5 {[%clk 0:03:00]} 3. f4 {[%clk 0:02:55]}  Nf6 {[%clk 0:03:00]} 4. Nf3 {[%clk 0:02:56]}  h5 {[%clk 0:03:00]} 5. d3 {[%clk 0:02:56]}  Bg4 {[%clk 0:03:00]} 6. O-O {[%clk 0:02:56]}  Nbd7 {[%clk 0:02:56]} 7. h3 {[%clk 0:02:56]}  Bxf3 {[%clk 0:02:56]} 8. Bxf3 {[%clk 0:02:56]}  h4 {[%clk 0:02:56]} 9. g4 {[%clk 0:02:56]}  e5 {[%clk 0:02:54]} 10. e4 {[%clk 0:02:40]}  Bc5+ {[%clk 0:02:52]} 11. Kh1 {[%clk 0:02:39]}  dxe4 {[%clk 0:02:51]} 12. dxe4 {[%clk 0:02:39]}  exf4 {[%clk 0:02:45]} 13. Bxf4 {[%clk 0:02:39]}  Nb6 {[%clk 0:02:41]} 14. Qe2 {[%clk 0:02:35]}  Qe7 {[%clk 0:02:27]} 15. Nc3 {[%clk 0:02:33]}  O-O-O {[%clk 0:02:22]} 16. a4 {[%clk 0:02:29]}  Bd4 {[%clk 0:02:18]} 17. g5 {[%clk 0:02:25]}  Nfd7 {[%clk 0:02:17]} 18. a5 {[%clk 0:02:25]}  Na8 {[%clk 0:02:07]} 19. a6 {[%clk 0:02:24]}  b6 {[%clk 0:02:03]} 20. Bg4 {[%clk 0:02:14]}  Be5 {[%clk 0:02:01]} 21. Bxe5 {[%clk 0:02:14]}  Qxe5 {[%clk 0:02:00]} 22. Rxf7 {[%clk 0:02:14]}  Nc7 {[%clk 0:01:47]} 23. Qc4 {[%clk 0:02:05]}  Qc5 {[%clk 0:00:55]} 24. Qxc5 {[%clk 0:02:03]}  bxc5 {[%clk 0:00:55]} 25. Rd1 {[%clk 0:02:04]} 1-0


[Site "https://www.chess.com"]